bitfinex/quotes_BTCUSD_20241206
["timestamp","ask_amount","ask_price","bid_price","bid_amount"]
[1733449251927,0.08,98136.0,98061.0,0.0489]
[1733449251928,0.10503154,98135.0,98093.0,0.05344788]
[1733449252132,0.10503154,98135.0,98061.0,0.04948002]
[1733449252133,0.00127387,98134.0,98062.0,0.05056355]
[1733449252257,0.10630541,98133.0,98062.0,1.09142255]
[1733449252460,0.10630541,98133.0,98064.0,0.05037812]
[1733449252738,0.10503154,98133.0,98063.0,0.05041101]
[1733449252913,0.00127387,98132.0,98065.0,0.05083217]
[1733449253115,0.10503154,98131.0,98067.0,0.05086395]
[1733449253315,0.00127387,98130.0,98066.0,0.05016434]
[1733449253527,0.10503154,98129.0,98066.0,0.05016434]
[1733449253738,0.10503154,98129.0,98066.0,0.0504136]
[1733449253958,0.10503154,98129.0,98066.0,0.05050659]
[1733449254117,0.05,98106.0,98063.0,0.03954962]
[1733449254319,0.05,98106.0,98045.0,0.39613866]
[1733449254320,0.05,98100.0,98068.0,0.1788793]
[1733449254554,0.1,98098.0,98074.0,0.00312564]
[1733449254763,0.10630592,98097.0,98074.0,0.00312564]
[1733449254933,0.10630592,98097.0,98044.0,0.1288793]
[1733449254934,0.05,98086.0,98044.0,0.1288793]
[1733449255133,0.08,98096.0,98040.0,0.22443218]
[1733449255134,0.10630592,98085.0,98040.0,0.0008648]
[1733449255338,0.10503154,98085.0,98041.0,0.05067635]
[1733449255543,0.10503154,98085.0,98040.0,1.06380294]
[1733449255544,0.00127449,98084.0,98062.0,0.00301367]
[1733449255813,0.10503154,98083.0,98031.0,0.050092]
[1733449255994,0.00127451,98082.0,98032.0,0.05024403]
[1733449256209,0.10503154,98081.0,98032.0,0.05024403]
[1733449256418,0.10503154,98081.0,98052.0,0.7]
[1733449256624,0.10503154,98081.0,98052.0,0.65]
[1733449256829,0.10503154,98081.0,98062.0,0.00303167]
[1733449257163,0.10003154,98081.0,98052.0,0.55303167]
[1733449257380,0.10003154,98081.0,98053.0,0.00920779]
[1733449257585,0.10003154,98081.0,98052.0,0.51223946]
[1733449258006,0.10003154,98081.0,98052.0,0.41223946]
[1733449258393,0.10003154,98081.0,98052.0,0.31223946]
[1733449258591,0.10003154,98081.0,98052.0,0.26223946]
[1733449258804,0.10003154,98081.0,98059.0,0.00311702]
[1733449258972,0.10003154,98081.0,98052.0,0.16535648]
[1733449259169,0.10003154,98081.0,98052.0,1.08840807]
[1733449259371,0.10003154,98081.0,98052.0,1.0414323]
[1733449259578,0.10003154,98081.0,98031.0,0.0503615]
[1733449259781,0.10003154,98081.0,98031.0,0.08963168]
[1733449259984,0.05,98094.0,98031.0,0.0503615]
[1733449260158,0.15604987,98093.0,98032.0,0.00101962]
[1733449260387,0.05,98092.0,98033.0,0.0503087]
[1733449260587,0.01859267,98096.0,98059.0,0.00305537]
[1733449260793,0.01961693,98111.0,98060.0,0.05066849]
[1733449261001,0.1,98125.0,98061.0,0.11205374]
[1733449261002,0.00127404,98124.0,98061.0,0.11205374]
[1733449261216,0.10630558,98123.0,98063.0,0.05078321]
[1733449261451,0.10630558,98123.0,98064.0,0.02996392]
[1733449261645,0.10630558,98123.0,98065.0,0.05067039]
[1733449261873,0.10630558,98123.0,98067.0,0.05062003]
[1733449262037,0.10630558,98123.0,98061.0,0.0826]
[1733449262254,0.10630558,98123.0,98062.0,0.02944708]
[1733449262456,0.08,98122.0,98063.0,0.0294402]
[1733449262660,0.10630558,98121.0,98065.0,0.05078209]
[1733449262861,0.15630558,98121.0,98065.0,1.02305159]
[1733449263100,0.05,98104.0,98065.0,1.02305159]
[1733449263311,0.00127404,98121.0,98019.0,0.0489]
[1733449263312,0.05,98084.0,98019.0,0.0489]
[1733449263524,0.10503154,98083.0,98050.0,1.02305159]
[1733449263723,0.10503154,98083.0,98019.0,0.02245869]
[1733449263724,0.10503154,98083.0,98051.0,0.00407]
[1733449263833,0.10503154,98083.0,98047.0,0.05047113]
[1733449264040,0.10503154,98083.0,98019.0,0.02245869]
[1733449264041,0.10503154,98083.0,98020.0,0.05092764]
[1733449264244,0.10503154,98083.0,98022.0,0.05030467]
[1733449264443,0.10503154,98083.0,98022.0,0.05099851]
[1733449264674,0.10503154,98083.0,98021.0,0.0504336]
[1733449264871,0.10503154,98083.0,98022.0,0.02896427]
[1733449265071,0.10503154,98083.0,98021.0,0.05032656]
[1733449265368,0.00057966,98084.0,98027.0,0.05008854]
[1733449265535,0.00057966,98084.0,98030.0,0.023]
[1733449265747,0.00057966,98084.0,98032.0,0.0501032]
[1733449265946,0.00057966,98084.0,98034.0,0.05007005]
[1733449266160,0.00057966,98084.0,98036.0,0.0508544]
[1733449266366,0.00057966,98084.0,98033.0,0.0826]
[1733449266367,0.00057966,98084.0,98038.0,0.05031018]
[1733449266502,0.00057966,98084.0,98040.0,0.05005694]
[1733449266697,0.00057966,98084.0,98042.0,0.05033614]
[1733449267056,0.00057966,98084.0,98043.0,0.05022254]
[1733449268220,0.00057966,98084.0,98043.0,0.05009477]
[1733449268643,0.00057966,98084.0,98043.0,0.05052134]
[1733449269227,0.00057966,98084.0,98042.0,1.02305159]
[1733449269651,0.00057966,98084.0,98043.0,0.05078722]
[1733449270658,0.00057966,98084.0,98042.0,1.02305159]
[1733449270867,0.00057966,98084.0,98043.0,0.30997822]
[1733449271075,0.00057966,98084.0,98043.0,0.05078722]
[1733449271472,1e-08,98084.0,98044.0,0.0466]
[1733449271738,1e-08,98084.0,98045.0,0.05033499]
[1733449272741,1e-08,98084.0,98083.0,0.00298049]
[1733449272952,1e-08,98084.0,98083.0,1.02305159]
[1733449273505,0.07560001,98084.0,98083.0,1.02305159]
[1733449273734,0.07560001,98084.0,98069.0,1.02305159]
[1733449273961,0.12930595,98083.0,98069.0,1.02305159]
[1733449274194,0.023,98081.0,98060.0,0.0008666]
[1733449274414,0.10630607,98080.0,98060.0,0.0008666]
[1733449274863,0.10630607,98080.0,98060.0,0.03989248]
[1733449275580,0.10630607,98080.0,98065.0,0.00312149]
[1733449276613,0.048,98082.0,98065.0,0.00312149]
[1733449277034,0.048,98082.0,98038.0,0.05027533]
[1733449277289,0.048,98082.0,97853.0,0.5716174]
[1733449277290,0.05,98046.0,98005.0,0.05031271]
[1733449277503,0.0809,98038.0,98021.0,0.00303245]
[1733449277683,0.12930668,98037.0,97994.0,0.0511735]
[1733449277897,0.17930668,98037.0,98006.0,1.02305159]
[1733449278125,0.17930668,98037.0,97989.0,0.05131104]
[1733449278306,0.17930668,98037.0,97986.0,1.02305159]
[1733449278307,0.023,98020.0,97986.0,1.02305159]
[1733449278521,0.023,98018.0,98000.0,0.00057964]
[1733449278676,0.10630691,98017.0,98000.0,0.00057964]
[1733449278873,0.10630691,98017.0,97986.0,0.03878382]
[1733449279085,0.1039,98016.0,97986.0,1.02322577]
[1733449279297,0.10503154,98015.0,97971.0,0.05198274]
[1733449279493,0.10503154,98015.0,97958.0,0.0488]
[1733449279494,0.10503154,98015.0,97981.0,0.05115065]
[1733449279816,0.10630691,98015.0,97980.0,1.06350143]
[1733449280009,0.10630691,98015.0,97980.0,0.03854476]
[1733449280161,0.10090054,98015.0,97997.0,0.00311394]
[1733449280365,0.10217591,98015.0,97987.0,1.02305159]
[1733449280570,0.02427537,98014.0,97961.0,0.05192702]
[1733449280777,0.10503154,98013.0,97961.0,1.07497861]
[1733449281004,0.10004255,98013.0,97967.0,0.01453206]
[1733449281209,0.07328959,98013.0,97968.0,0.02659674]
[1733449281365,0.06891364,98013.0,97968.0,0.02659674]
[1733449281569,0.00127541,98012.0,97997.0,0.00298605]
[1733449281931,0.073,98000.0,97971.0,1.02305159]
[1733449282146,0.0809,98004.0,97960.0,0.04015446]
[1733449282147,0.023,97995.0,97960.0,0.04015446]
[1733449282361,0.023,97993.0,97969.0,1.02305159]
[1733449282565,0.023,97991.0,97969.0,1.02305159]
[1733449282768,0.00127571,97990.0,97969.0,1.02305159]
[1733449282987,0.12803154,97991.0,97969.0,1.02305159]
[1733449283262,0.05,97989.0,97935.0,0.00908314]
[1733449283486,0.00017374,97991.0,97946.0,0.05134741]
[1733449283769,0.10503154,97990.0,97947.0,0.05106157]
[1733449283982,0.0012757,97989.0,97947.0,0.05112412]
[1733449284441,0.10503154,97990.0,97946.0,1.02414022]
[1733449284688,0.10503154,97990.0,97932.0,0.0514833]
[1733449284894,0.10503154,97990.0,97930.0,0.05333271]
[1733449285117,0.10503154,97990.0,97932.0,0.0513546]
[1733449285329,0.023,97989.0,97932.0,0.0513546]
[1733449285548,0.10503154,97990.0,97931.0,1.02311159]
[1733449285549,0.10503154,97990.0,97934.0,0.05178427]
[1733449285783,0.10503154,97990.0,97936.0,0.05103788]
[1733449285994,0.10503154,97990.0,97931.0,1.02311159]
[1733449285995,0.10503154,97990.0,97941.0,0.0515273]
[1733449286247,0.00017374,97991.0,97941.0,0.0515273]
[1733449286248,0.00017374,97991.0,97942.0,0.05175104]
[1733449286480,0.00017374,97991.0,97942.0,0.23265104]
[1733449286714,0.00017374,97991.0,97944.0,0.05185971]
[1733449286961,0.00017374,97991.0,97941.0,1.02305159]
[1733449286962,0.00017374,97991.0,97946.0,0.05130252]
[1733449287200,0.00017374,97991.0,97942.0,0.0513282]
[1733449287412,0.00017374,97991.0,97948.0,0.05195188]
[1733449287677,0.00017374,97991.0,97950.0,0.05143324]
[1733449287906,0.00017374,97991.0,97941.0,1.02305159]
[1733449287907,0.00017374,97991.0,97942.0,0.05129002]
[1733449288151,0.00017374,97991.0,97942.0,1.08647202]
[1733449288405,0.07647186,98004.0,97943.0,1.07556619]
[1733449288621,0.07647186,98004.0,97945.0,0.05183336]
[1733449288832,0.07647186,98004.0,97946.0,0.215851]
[1733449289045,0.07647186,98004.0,97947.0,0.05115361]
[1733449289277,0.12930701,98003.0,97949.0,0.05143322]
[1733449289499,0.12930701,98003.0,97990.0,20.245237]
[1733449289775,0.12930701,98003.0,97990.0,20.195237]
[1733449290001,0.12930701,98003.0,97990.0,20.145237]
[1733449290229,0.12930701,98003.0,97990.0,20.045237]
[1733449290464,0.12930701,98003.0,97990.0,19.995237]
[1733449290661,0.12930701,98003.0,97990.0,19.945237]
[1733449290835,0.12930701,98003.0,97990.0,19.84541074]
[1733449291097,0.023,98001.0,97990.0,19.79541074]
[1733449291305,0.023,97999.0,97990.0,19.74541074]
[1733449291527,0.023,97997.0,97990.0,19.64541074]
[1733449291862,0.023,97995.0,97990.0,19.59541074]
[1733449292063,0.023,97995.0,97990.0,19.49541074]
[1733449292265,0.023,97995.0,97990.0,19.44541074]
[1733449292483,0.05,98002.0,97990.0,19.39541074]
[1733449292691,0.023,98003.0,97990.0,19.34541074]
[1733449292859,0.023,98003.0,97990.0,19.24541074]
[1733449293036,0.023,98003.0,97990.0,19.19541074]
[1733449293037,0.00876443,98003.0,97990.0,19.19541074]
[1733449293215,0.07647186,98004.0,97990.0,19.14541074]
[1733449293417,0.07647186,98004.0,97990.0,19.04541074]
[1733449293418,0.06656352,98004.0,97990.0,19.04541074]
[1733449293619,0.06656352,98004.0,97990.0,18.99541074]
[1733449293620,0.06200831,98004.0,97990.0,18.99541074]
[1733449293825,0.06200831,98004.0,97990.0,18.94541074]
[1733449294028,0.06200831,98004.0,97990.0,18.89541074]
[1733449294229,0.06200831,98004.0,97990.0,18.79541074]
[1733449294230,0.10503154,98003.0,97990.0,18.79541074]
[1733449294429,0.05,97991.0,97990.0,18.74541074]
[1733449294668,0.20353154,97991.0,97990.0,18.69541074]
[1733449294883,0.20353154,97991.0,97990.0,18.56731074]
[1733449295112,0.17803154,97991.0,97990.0,18.16881074]
[1733449295533,0.22803154,97991.0,97990.0,18.16881074]
[1733449295887,0.22803154,97991.0,97990.0,18.01881074]
[1733449296135,0.17803154,97991.0,97990.0,17.96881074]
[1733449296347,0.22803154,97991.0,97990.0,17.86881074]
[1733449296555,0.22803154,97991.0,97990.0,17.81881074]
[1733449296774,0.22803154,97991.0,97990.0,17.76881074]
[1733449296954,0.22803154,97991.0,97990.0,17.71881074]
[1733449296955,0.12803154,97991.0,97990.0,17.71881074]
[1733449298142,0.12803154,97991.0,97990.0,17.71967804]
[1733449298834,0.17803154,97991.0,97990.0,17.71967804]
[1733449299747,0.22803154,97991.0,97990.0,17.71967804]
[1733449300437,0.22507553,97991.0,97990.0,17.71967804]
[1733449300646,0.12507553,97991.0,97990.0,17.71967804]
[1733449300846,0.12507553,97991.0,97990.0,17.61967804]
[1733449301266,0.12507553,97991.0,97990.0,17.56967804]
[1733449301491,0.12507553,97991.0,97990.0,17.46967804]
[1733449301712,0.12507553,97991.0,97990.0,17.41967804]
[1733449301927,0.12507553,97991.0,97990.0,17.36967804]
[1733449302118,0.12507553,97991.0,97990.0,17.31967804]
[1733449302336,0.12507553,97991.0,97990.0,17.26967804]
[1733449302564,0.12507553,97991.0,97990.0,17.16967804]
[1733449302767,0.12007553,97991.0,97990.0,17.11967804]
[1733449303104,0.11701874,97991.0,97990.0,17.01967804]
[1733449303301,0.11701874,97991.0,97990.0,16.96967804]
[1733449303527,0.11701874,97991.0,97990.0,16.91967804]
[1733449303882,0.11701874,97991.0,97990.0,16.81967804]
[1733449304096,0.11701874,97991.0,97990.0,16.76967804]
[1733449304254,0.11701874,97991.0,97990.0,16.71967804]
[1733449304456,0.11701874,97991.0,97990.0,16.66967804]
[1733449304659,0.11701874,97991.0,97990.0,16.61967804]
[1733449304862,0.11701874,97991.0,97990.0,16.56967804]
[1733449305069,0.11701874,97991.0,97990.0,16.51967804]
[1733449305318,0.11701874,97991.0,97990.0,16.46967804]
[1733449305528,0.11701874,97991.0,97990.0,16.41967804]
[1733449305660,0.11701874,97991.0,97990.0,16.31967804]
[1733449306033,0.11701874,97991.0,97990.0,16.26967804]
[1733449306699,0.16701874,97991.0,97990.0,16.21967804]
[1733449307116,0.16701874,97991.0,97990.0,16.16967804]
[1733449307323,0.16701874,97991.0,97990.0,16.11967804]
[1733449307537,0.21701874,97991.0,97990.0,14.56987804]
[1733449307797,0.21701874,97991.0,97990.0,14.51987804]
[1733449308008,0.21701874,97991.0,97990.0,14.46987804]
[1733449308257,0.21701874,97991.0,97990.0,14.41987804]
[1733449308477,0.21701874,97991.0,97990.0,14.31987804]
[1733449308691,0.16701874,97991.0,97990.0,14.26987804]
[1733449308923,0.21701874,97991.0,97990.0,14.21987804]
[1733449309188,0.16701874,97991.0,97990.0,14.11987804]
[1733449309425,0.16701874,97991.0,97990.0,14.01987804]
[1733449309645,0.16701874,97991.0,97990.0,13.96987804]
[1733449309861,0.16701874,97991.0,97990.0,13.91987804]
[1733449310096,0.14401874,97991.0,97990.0,13.86987804]
[1733449310325,0.14401874,97991.0,97990.0,13.81987804]
[1733449310568,0.14401874,97991.0,97990.0,13.76987804]
[1733449310781,0.19401874,97991.0,97990.0,13.71987804]
[1733449310997,0.19401874,97991.0,97990.0,13.66987804]
[1733449311230,0.19401874,97991.0,97990.0,13.61987804]
[1733449311506,0.19401874,97991.0,97990.0,13.51987804]
[1733449311507,0.21701874,97991.0,97990.0,13.51987804]
[1733449311733,0.21701874,97991.0,97990.0,13.46987804]
[1733449311953,0.21701874,97991.0,97990.0,13.36987804]
[1733449312190,0.21701874,97991.0,97990.0,13.31987804]
[1733449312434,0.21701874,97991.0,97990.0,13.21987804]
[1733449312674,0.21701874,97991.0,97990.0,13.16987804]
[1733449312895,0.21701874,97991.0,97990.0,13.11987804]
[1733449313119,0.21701874,97991.0,97990.0,13.06987804]
[1733449313363,0.21701874,97991.0,97990.0,13.01987804]
[1733449313614,0.21701874,97991.0,97990.0,12.96987804]
[1733449313875,0.21701874,97991.0,97990.0,12.86987804]
[1733449314120,0.21701874,97991.0,97990.0,12.81987804]
[1733449314886,0.21701874,97991.0,97990.0,12.76987804]
[1733449315100,0.21701874,97991.0,97990.0,12.71987804]
[1733449315783,0.21701874,97991.0,97990.0,12.66987804]
[1733449316216,0.21701874,97991.0,97990.0,12.61987804]
[1733449316649,0.21701874,97991.0,97990.0,12.56987804]
[1733449317322,0.21701874,97991.0,97990.0,12.51987804]
[1733449317569,0.21701874,97991.0,97990.0,12.46987804]
[1733449318035,0.21701874,97991.0,97990.0,12.41987804]
[1733449318484,0.21701874,97991.0,97990.0,12.36987804]
[1733449318920,0.21701874,97991.0,97990.0,12.31987804]
[1733449319612,0.21701874,97991.0,97990.0,12.26987804]
[1733449320065,0.21701874,97991.0,97990.0,12.21987804]
[1733449320281,0.21701874,97991.0,97990.0,12.16987804]
[1733449320713,0.21701874,97991.0,97990.0,12.06987804]
[1733449320915,0.21701874,97991.0,97990.0,12.01987804]
[1733449321122,0.21701874,97991.0,97990.0,11.96987804]
[1733449321340,0.21701874,97991.0,97990.0,11.91987804]
[1733449321550,0.21701874,97991.0,97990.0,11.81987804]
[1733449321754,0.21701874,97991.0,97990.0,11.76987804]
[1733449322385,0.21701874,97991.0,97990.0,11.71987804]
[1733449325637,0.14401874,97991.0,97990.0,11.71987804]
[1733449325887,0.09401874,97991.0,97990.0,11.71987804]
[1733449326095,0.14401874,97991.0,97990.0,11.71987804]
[1733449326759,0.19401874,97991.0,97990.0,11.71987804]
[1733449326968,0.21829444,97991.0,97990.0,11.71987804]
[1733449327199,0.21701874,97991.0,97990.0,11.71987804]
[1733449328959,0.21701874,97991.0,97990.0,11.66987804]
[1733449329419,0.21701874,97991.0,97990.0,11.61987804]
[1733449329626,0.21701874,97991.0,97990.0,11.56987804]
[1733449329861,0.21701874,97991.0,97990.0,11.51987804]
[1733449330080,0.21701874,97991.0,97990.0,11.46987804]
[1733449330292,0.21701874,97991.0,97990.0,11.41987804]
[1733449330506,0.21701874,97991.0,97990.0,11.36987804]
[1733449330750,0.21701874,97991.0,97990.0,11.31987804]
[1733449330952,0.21701874,97991.0,97990.0,11.26987804]
[1733449331161,0.21701874,97991.0,97990.0,11.21987804]
[1733449331362,0.21701874,97991.0,97990.0,11.11987804]
[1733449331572,0.21701874,97991.0,97990.0,11.06987804]
[1733449331793,0.21701874,97991.0,97990.0,11.01987804]
[1733449332004,0.21701874,97991.0,97990.0,10.96987804]
[1733449332213,0.21701874,97991.0,97990.0,10.91987804]
[1733449332385,0.21701874,97991.0,97990.0,10.86987804]
[1733449332596,0.21701874,97991.0,97990.0,10.81987804]
[1733449332800,0.21701874,97991.0,97990.0,10.76987804]
[1733449333003,0.21701874,97991.0,97990.0,10.71987804]
[1733449333200,0.21701874,97991.0,97990.0,10.61987804]
[1733449333408,0.19401874,97991.0,97990.0,10.56987804]
[1733449333594,0.19401874,97991.0,97990.0,10.51987804]
[1733449333798,0.19401874,97991.0,97990.0,10.46987804]
[1733449333996,0.19401874,97991.0,97990.0,10.41987804]
[1733449334351,0.19401874,97991.0,97990.0,10.31987804]
[1733449334489,0.14401874,97991.0,97990.0,10.26987804]
[1733449334684,0.19401874,97991.0,97990.0,10.21987804]
[1733449334891,0.19401874,97991.0,97990.0,10.16987804]
[1733449335302,0.21701874,97991.0,97990.0,10.16987804]
[1733449335765,0.21701874,97991.0,97990.0,10.11987804]
[1733449336030,0.19401874,97991.0,97990.0,10.11987804]
[1733449337252,0.21829468,97991.0,97990.0,10.11987804]
[1733449337456,0.21701874,97991.0,97990.0,10.11987804]
[1733449337671,0.21701874,97991.0,97990.0,10.06987804]
[1733449337834,0.21701874,97991.0,97990.0,10.01987804]
[1733449338049,0.16701874,97991.0,97990.0,10.01987804]
[1733449338221,0.21701874,97991.0,97990.0,10.01987804]
[1733449339187,0.16701874,97991.0,97990.0,10.01987804]
[1733449339479,0.14401874,97991.0,97990.0,10.06577804]
[1733449339685,0.19401874,97991.0,97990.0,10.06577804]
[1733449340938,0.21701874,97991.0,97990.0,10.06577804]
[1733449341152,0.21701874,97991.0,97990.0,10.01987804]
[1733449343797,0.11701874,97991.0,97990.0,10.01987804]
[1733449344007,0.16701874,97991.0,97990.0,10.01987804]
[1733449344240,0.11701874,97991.0,97990.0,10.01987804]
[1733449344775,0.09401874,97991.0,97990.0,10.01987804]
[1733449345195,0.09401874,97991.0,97990.0,10.17246628]
[1733449345399,0.09401874,97991.0,97990.0,10.233717]
[1733449345625,0.0017346,98000.0,97992.0,0.0459]
[1733449345839,0.0017346,98000.0,97999.0,0.18019986]
[1733449346030,0.0017346,98000.0,97999.0,0.25412966]
[1733449346225,0.0017346,98000.0,97999.0,0.02887983]
[1733449347629,0.05,98014.0,98000.0,0.0778]
[1733449347829,0.04100992,98059.0,98000.0,0.0778]
[1733449347830,0.05,98031.0,98011.0,0.13507648]
[1733449348026,0.10503154,98031.0,98023.0,0.0900275]
[1733449348282,0.10503154,98031.0,98028.0,0.13504125]
[1733449348483,0.10503154,98031.0,98029.0,0.25412966]
[1733449348682,0.10503154,98031.0,98030.0,0.02887983]
[1733449349108,0.10503154,98031.0,98030.0,0.16381394]
[1733449349303,0.10503154,98031.0,98028.0,0.0898962]
[1733449349509,0.10508964,98031.0,98029.0,0.0898962]
[1733449349678,0.10508964,98031.0,98028.0,0.0898962]
[1733449349901,0.10508964,98031.0,98030.0,0.0778]
[1733449349902,5.81e-05,98031.0,98030.0,0.0778]
[1733449350263,0.00127497,98086.0,98036.0,0.0459]
[1733449350474,0.05,98111.0,98036.0,0.0459]
[1733449350475,0.0012745,98107.0,98067.0,0.0896717]
[1733449350675,0.00058128,98087.0,98080.0,0.0778]
[1733449350822,0.00058128,98087.0,98084.0,0.13450755]
[1733449351048,0.0012745,98107.0,98085.0,0.25382201]
[1733449351260,0.00190864,98090.0,98087.0,0.13435581]
[1733449351508,0.00190864,98090.0,98085.0,0.0459]
[1733449351648,0.0012745,98107.0,98085.0,0.0459]
[1733449351859,0.10503154,98098.0,98085.0,0.04648128]
[1733449353559,0.10033495,98098.0,98085.0,0.04648128]
[1733449354513,0.001,98089.0,98085.0,0.04648128]
[1733449355184,0.10503154,98088.0,98085.0,0.04648128]
[1733449355393,0.02427444,98087.0,98085.0,0.04648128]
[1733449355602,0.21228621,98086.0,98085.0,0.04648128]
[1733449357514,0.03425467,98081.0,98080.0,0.07428128]
[1733449357735,0.16228621,98081.0,98080.0,0.07428128]
[1733449357947,0.1635608,98081.0,98080.0,0.07428128]
[1733449358153,0.1635608,98081.0,98080.0,0.02428128]
[1733449358580,0.023,98080.0,98029.0,0.05098393]
[1733449358802,0.023,98078.0,98031.0,0.05001206]
[1733449359006,0.03425467,98071.0,98020.0,0.0008664]
[1733449359221,0.10503154,98071.0,98022.0,0.01574533]
[1733449359435,0.00058045,98086.0,98036.0,0.01574533]
[1733449359636,0.10503154,98085.0,98036.0,1.03879692]
[1733449359855,0.00058045,98086.0,98041.0,0.01574533]
[1733449360064,0.00058045,98086.0,98048.0,0.01574533]
[1733449360269,0.00058045,98086.0,98048.0,1.03879692]
[1733449360488,0.10561199,98086.0,98049.0,0.07468994]
[1733449360666,0.10630597,98085.0,98049.0,0.05297]
[1733449361131,0.00058045,98086.0,98050.0,0.02578994]
[1733449361331,0.10561199,98086.0,98050.0,0.02578994]
[1733449361459,0.10561199,98086.0,98051.0,0.0755]
[1733449361875,0.001,98079.0,98051.0,0.0755]
[1733449362076,0.001,98079.0,98051.0,0.10128994]
[1733449362649,0.001,98079.0,98051.0,0.0755]
[1733449363674,0.001,98079.0,98060.0,0.01574533]
[1733449363873,0.001,98079.0,98061.0,0.02561523]
[1733449364086,0.001,98079.0,98062.0,0.1244]
[1733449364288,0.001,98079.0,98063.0,0.05140517]
[1733449364492,0.001,98079.0,98064.0,0.0489]
[1733449364845,0.001,98079.0,98065.0,0.12690517]
[1733449365666,0.001,98079.0,98066.0,0.0755]
[1733449366165,0.001,98079.0,98067.0,0.05140517]
[1733449367120,0.001,98079.0,98066.0,0.0755]
[1733449367570,0.10503154,98078.0,98066.0,0.0755]
[1733449367944,0.00127448,98077.0,98066.0,0.0755]
[1733449368136,0.023,98075.0,98064.0,0.0489]
[1733449368348,0.001,98079.0,98053.0,0.0801]
[1733449368563,0.001,98079.0,98057.0,1.02305159]
[1733449371424,0.001,98079.0,98058.0,0.04874099]
[1733449371633,0.001,98079.0,98059.0,0.0477]
[1733449371844,0.001,98079.0,98060.0,0.0489157]
[1733449373181,0.0017326,98100.0,98069.0,0.05093232]
[1733449373385,0.0017326,98100.0,98072.0,0.07388356]
[1733449373640,0.0017326,98100.0,98069.0,1.02305159]
[1733449373641,0.0017326,98100.0,98076.0,0.05094812]
[1733449373842,0.0017326,98100.0,98078.0,0.17822489]
[1733449374067,0.0017326,98100.0,98080.0,0.05026618]
[1733449374260,0.0017326,98100.0,98084.0,0.05044424]
[1733449374470,0.05127375,98152.0,98110.0,0.1278]
[1733449374664,0.00127365,98151.0,98123.0,0.0037326]
[1733449374916,0.00127365,98151.0,98124.0,0.04885758]
[1733449375126,0.00127365,98151.0,98125.0,0.02852843]
[1733449375561,0.00127365,98151.0,98126.0,0.02874807]
[1733449375770,0.00127365,98151.0,98127.0,0.02852843]
[1733449375971,0.00117417,98129.0,98128.0,0.02874807]
[1733449376176,0.00117417,98129.0,98128.0,0.0572765]
[1733449377252,0.00117417,98129.0,98123.0,1.02305159]
[1733449378099,0.10503154,98128.0,98123.0,1.02305159]
[1733449378311,0.00127391,98127.0,98107.0,1.02305159]
[1733449378506,0.05,98121.0,98101.0,0.02010951]
[1733449378742,0.05,98121.0,98097.0,0.0801]
[1733449378743,0.023,98116.0,98097.0,0.0801]
[1733449378961,0.10503154,98115.0,98097.0,0.0301]
[1733449379192,0.10503154,98116.0,98097.0,0.0301]
[1733449379612,0.05,98121.0,98096.0,0.02874807]
[1733449379810,0.0017332,98130.0,98098.0,0.02874807]
[1733449380048,0.05,98121.0,98097.0,0.02670093]
[1733449380723,0.05,98121.0,98095.0,0.0278]
[1733449381359,0.10630547,98120.0,98095.0,0.0278]
[1733449382720,0.023,98119.0,98095.0,0.0278]
[1733449382916,0.10630559,98118.0,98095.0,0.0278]
[1733449383539,0.10503154,98118.0,98095.0,0.0278]
[1733449383963,0.10630559,98118.0,98095.0,0.0278]
[1733449384417,0.00127405,98117.0,98095.0,0.0278]
[1733449384616,0.10503154,98116.0,98095.0,0.0278]
[1733449385390,0.00127405,98115.0,98092.0,1.02305159]
[1733449385595,0.023,98109.0,98092.0,1.02305159]
[1733449385822,0.023,98100.0,98079.0,1.02305159]
[1733449386042,0.023,98098.0,98079.0,1.02305159]
[1733449386193,0.10630584,98097.0,98079.0,1.02305159]
[1733449386803,0.05,98095.0,98079.0,1.02305159]
[1733449387010,0.05,98090.0,98079.0,1.02305159]
[1733449387217,0.12930597,98089.0,98079.0,0.97305159]
[1733449387495,0.12930597,98089.0,98079.0,0.97363204]
[1733449387689,0.12930597,98089.0,98079.0,0.92363204]
[1733449388437,0.12930597,98089.0,98079.0,0.87363204]
[1733449388862,0.03425467,98086.0,98079.0,0.87363204]
[1733449389072,0.05725467,98080.0,98079.0,0.82363204]
[1733449389231,0.16228621,98080.0,98079.0,0.00058045]
[1733449389467,0.21356087,98080.0,98079.0,0.00058045]
[1733449389672,0.21228621,98080.0,98079.0,0.00058045]
[1733449389865,0.073,98079.0,98041.0,0.1237]
[1733449390071,0.023,98077.0,98041.0,0.1237]
[1733449390245,0.05,98068.0,98041.0,1.09675159]
[1733449390449,0.15503154,98068.0,98041.0,1.09675159]
[1733449390841,0.15503154,98068.0,98041.0,1.04675159]
[1733449391042,0.15503154,98068.0,98041.0,0.99675159]
[1733449391446,0.15503154,98068.0,98041.0,0.97305159]
[1733449391700,0.15503154,98068.0,98037.0,0.05041404]
[1733449391921,0.00058045,98080.0,98042.0,0.01776378]
[1733449392139,0.00058045,98080.0,98043.0,0.02869029]
[1733449392373,0.00058045,98080.0,98044.0,0.05026098]
[1733449392625,0.05,98061.0,98027.0,0.05030549]
[1733449392828,0.10503154,98060.0,98029.0,0.05081252]
[1733449393035,0.10503154,98060.0,98021.0,0.05085771]
[1733449393241,0.10503154,98060.0,98020.0,0.0008664]
[1733449393242,0.10503154,98060.0,98023.0,0.05091816]
[1733449393444,0.10630633,98060.0,98025.0,0.05013322]
[1733449393651,0.00127479,98059.0,98025.0,0.05013322]
[1733449393856,0.10503154,98058.0,98025.0,0.05000592]
[1733449394061,0.10503154,98058.0,98024.0,0.0474]
[1733449394062,0.023,98054.0,98021.0,0.05043584]
[1733449394286,0.05,98055.0,98023.0,0.05029042]
[1733449394509,0.05,98055.0,98025.0,0.05095058]
[1733449394731,0.05,98055.0,98027.0,0.05026804]
[1733449394944,0.05,98055.0,98029.0,0.05051665]
[1733449395151,0.05,98055.0,98027.0,0.10503154]
[1733449395152,0.00127311,98054.0,98031.0,0.05036676]
[1733449395360,0.05,98055.0,98033.0,0.05000616]
[1733449395568,0.05,98055.0,98035.0,0.05065215]
[1733449395569,0.00127311,98054.0,98035.0,0.05065215]
[1733449395786,0.00127311,98054.0,98036.0,0.00101989]
[1733449396004,0.00127311,98054.0,98027.0,0.10503154]
[1733449396221,0.10503154,98053.0,98020.0,0.0008664]
[1733449396427,0.10503154,98053.0,98021.0,0.01007314]
[1733449396637,0.10503154,98053.0,98012.0,0.05006892]
[1733449396848,0.10503154,98053.0,98011.0,0.05027489]
[1733449397048,0.10503154,98053.0,98012.0,0.00101991]
[1733449397049,0.10335941,98053.0,98012.0,0.00101991]
[1733449397463,0.10335941,98053.0,98010.0,0.08330727]
[1733449397679,0.10335941,98053.0,98011.0,0.07950011]